fUSD/lending_fUSD_20250110
["ID","MTS","AMOUNT","RATE_DAILY","PERIOD"]
[348447480,1736532405139,-500.0,9.553e-05,2]
[348447481,1736532405167,-500.0,9.553e-05,2]
[348447482,1736532405200,-500.0,9.553e-05,2]
[348447483,1736532405228,-533.72,9.553e-05,2]
[348447484,1736532405256,-500.0,9.553e-05,2]
[348447485,1736532405281,-500.0,9.553e-05,2]
[348447486,1736532405308,-500.0,9.553e-05,2]
[348447487,1736532405351,-500.0,9.553e-05,2]
[348447488,1736532405380,-500.0,9.553e-05,2]
[348447489,1736532405408,-500.0,9.553e-05,2]
[348447490,1736532405436,-500.0,9.553e-05,2]
[348447491,1736532405464,-500.0,9.553e-05,2]
[348447492,1736532405492,-687.16,9.553e-05,2]
[348447493,1736532405520,-500.0,9.553e-05,2]
[348447494,1736532405546,-500.0,9.553e-05,2]
[348447495,1736532405575,-500.0,9.553e-05,2]
[348447496,1736532405602,-715.91,9.553e-05,2]
[348447497,1736532405629,-500.0,9.553e-05,2]
[348447498,1736532405657,-500.0,9.553e-05,2]
[348447499,1736532405684,-500.0,9.553e-05,2]
[348447500,1736532405710,-500.0,9.553e-05,2]
[348447501,1736532405737,-500.0,9.553e-05,2]
[348447502,1736532405766,-2023.16,9.553e-05,2]
[348447503,1736532405794,-1012.94,9.553e-05,2]
[348447504,1736532405821,-566.09,9.553e-05,2]
[348447505,1736532405849,-500.0,9.553e-05,2]
[348447506,1736532405876,-2231.49,9.553e-05,2]
[348447507,1736532405904,-882.57,9.553e-05,2]
[348447508,1736532405931,-500.0,9.553e-05,2]
[348447509,1736532405958,-291.31,9.553e-05,2]
[348447510,1736532405986,-500.0,9.553e-05,2]
[348447511,1736532406019,-1979.37,9.553e-05,2]
[348447512,1736532406050,-2055.51,9.553e-05,2]
[348447513,1736532406078,-500.0,9.554e-05,2]
[348447514,1736532406107,-500.0,9.554e-05,2]
[348447515,1736532406134,-500.0,9.554e-05,2]
[348447516,1736532406162,-500.0,9.554e-05,2]
[348447517,1736532406190,-556.91,9.554e-05,2]
[348447518,1736532406221,-500.0,9.554e-05,2]
[348447519,1736532406253,-500.0,9.554e-05,2]
[348447520,1736532406280,-500.0,9.554e-05,2]
[348447521,1736532406307,-500.0,9.554e-05,2]
[348447522,1736532406335,-500.0,9.554e-05,2]
[348447523,1736532406361,-683.85,9.555e-05,2]
[348447524,1736532406387,-500.0,9.555e-05,2]
[348447525,1736532406414,-500.0,9.555e-05,2]
[348447526,1736532406440,-587.6,9.555e-05,2]
[348447527,1736532406467,-1490.17,9.555e-05,2]
[348447528,1736532406495,-691.43,9.555e-05,2]
[348447529,1736532406522,-655.43,9.555e-05,2]
[348447530,1736532406549,-510.86,9.555e-05,2]
[348447531,1736532406576,-500.0,9.555e-05,2]
[348447532,1736532406603,-579.17,9.555e-05,2]
[348447533,1736532406630,-500.0,9.555e-05,2]
[348447534,1736532406658,-500.0,9.555e-05,2]
[348447535,1736532406683,-554.48,9.555e-05,2]
[348447536,1736532406710,-500.0,9.555e-05,2]
[348447537,1736532406735,-879.1,9.555e-05,2]
[348447538,1736532406764,-500.0,9.556e-05,2]
[348447539,1736532406792,-500.0,9.556e-05,2]
[348447540,1736532406824,-500.0,9.556e-05,2]
[348447541,1736532406851,-1105.58,9.556e-05,2]
[348447542,1736532406877,-500.0,9.556e-05,2]
[348447543,1736532406903,-829.69,9.556e-05,2]
[348447544,1736532406929,-526.98,9.556e-05,2]
[348447545,1736532406958,-853.59,9.556e-05,2]
[348447546,1736532406984,-500.0,9.556e-05,2]
[348447547,1736532407011,-1000.0,9.556e-05,2]
[348447548,1736532407038,-534.89,9.556e-05,2]
[348447549,1736532407066,-500.0,9.556e-05,2]
[348447550,1736532407094,-1310.65,9.556e-05,2]
[348447551,1736532407124,-1028.3,9.557e-05,2]
[348447552,1736532407151,-500.0,9.557e-05,2]
[348447553,1736532407179,-713.44,9.557e-05,2]
[348447554,1736532407211,-788.59,9.557e-05,2]
[348447555,1736532407240,-1004.56,9.557e-05,2]
[348447556,1736532407272,-791.55,9.557e-05,2]
[348447557,1736532407301,-2258.26,9.557e-05,2]
[348447558,1736532407328,-996.89,9.557e-05,2]
[348447559,1736532407354,-1008.65,9.557e-05,2]
[348447560,1736532407385,-1667.47,9.557e-05,2]
[348447561,1736532407411,-150.0,9.604e-05,2]
[348447562,1736532407438,-1000.0,9.726e-05,2]
[348447563,1736532407466,-1000.9809538,9.799e-05,2]
[348447564,1736532407495,-500.0,9.814e-05,2]
[348447565,1736532407527,-1160.17,9.825e-05,2]
[348447566,1736532407854,-562.78,9.825e-05,2]
[348447567,1736532407881,-1432.74,9.825e-05,2]
[348447568,1736532407907,-500.0,9.825e-05,2]
[348447569,1736532407935,-1053.37,9.825e-05,2]
[348447570,1736532407962,-625.57,9.825e-05,2]
[348447571,1736532407991,-850.15,9.825e-05,2]
[348447572,1736532408026,-656.87,9.825e-05,2]
[348447573,1736532408057,-500.0,9.825e-05,2]
[348447574,1736532408085,-983.8,9.825e-05,2]
[348447575,1736532408115,-711.072659,9.826e-05,2]
[348447576,1736532408143,-500.0,9.826e-05,2]
[348447577,1736532408173,-589.794467,9.826e-05,2]
[348447578,1736532408202,-1980.22,9.826e-05,2]
[348447579,1736532408228,-523.24,9.826e-05,2]
[348447580,1736532408259,-500.0,9.826e-05,2]
[348447581,1736532408286,-500.0,9.826e-05,2]
[348447582,1736532408314,-500.0,9.826e-05,2]
[348447583,1736532408340,-500.0,9.826e-05,2]
[348447584,1736532408366,-512.35,9.826e-05,2]
[348447585,1736532408392,-1786.01,9.826e-05,2]
[348447586,1736532408418,-500.0,9.826e-05,2]
[348447587,1736532408445,-500.0,9.826e-05,2]
[348447588,1736532408472,-500.0,9.826e-05,2]
[348447589,1736532408500,-500.0,9.826e-05,2]
[348447590,1736532408526,-500.0,9.826e-05,2]
[348447591,1736532408552,-500.0,9.826e-05,2]
[348447592,1736532408578,-500.0,9.826e-05,2]
[348447593,1736532408603,-500.0,9.826e-05,2]
[348447594,1736532408630,-500.0,9.826e-05,2]
[348447595,1736532408655,-157.1,9.826e-05,2]
[348447596,1736532408681,-365.45967281,9.826e-05,2]
[348447597,1736532408707,-500.0,9.826e-05,2]
[348447598,1736532408751,-863.29,9.826e-05,2]
[348447599,1736532408782,-500.0,9.826e-05,2]
[348447600,1736532408809,-500.0,9.826e-05,2]
[348447601,1736532408835,-500.0,9.826e-05,2]
[348447602,1736532408861,-500.0,9.826e-05,2]
[348447603,1736532408887,-500.0,9.826e-05,2]
[348447604,1736532408913,-500.0,9.826e-05,2]
[348447605,1736532408939,-500.0,9.826e-05,2]
[348447606,1736532408965,-500.0,9.826e-05,2]
[348447607,1736532408992,-532.3,9.826e-05,2]
[348447608,1736532409023,-658.71,9.826e-05,2]
[348447609,1736532409053,-500.0,9.826e-05,2]
[348447610,1736532409081,-500.0,9.826e-05,2]
[348447611,1736532409107,-500.0,9.826e-05,2]
[348447612,1736532409135,-310.93899356,9.826e-05,2]
[348447613,1736532409162,-500.0,9.826e-05,2]
[348447614,1736532409191,-500.0,9.826e-05,2]
[348447615,1736532409222,-500.0,9.826e-05,2]
[348447616,1736532409254,-1137.32,9.826e-05,2]
[348447617,1736532409283,-541.66,9.826e-05,2]
[348447618,1736532409309,-500.0,9.826e-05,2]
[348447619,1736532409335,-651.09,9.826e-05,2]
[348447620,1736532409361,-503.69,9.826e-05,2]
[348447621,1736532409387,-2044.71,9.826e-05,2]
[348447622,1736532409412,-500.0,9.826e-05,2]
[348447623,1736532409438,-500.0,9.826e-05,2]
[348447624,1736532409464,-500.0,9.826e-05,2]
[348447625,1736532409489,-500.0,9.826e-05,2]
[348447626,1736532409517,-500.0,9.826e-05,2]
[348447627,1736532409541,-500.0,9.826e-05,2]
[348447628,1736532409565,-500.0,9.826e-05,2]
[348447629,1736532409590,-514.76,9.826e-05,2]
[348447630,1736532409616,-500.0,9.826e-05,2]
[348447631,1736532409642,-534.63,9.826e-05,2]
[348447632,1736532409669,-500.0,9.826e-05,2]
[348447633,1736532409695,-2048.63,9.826e-05,2]
[348447634,1736532409721,-500.0,9.826e-05,2]
[348447635,1736532409750,-551.24,9.826e-05,2]
[348447636,1736532409776,-500.0,9.826e-05,2]
[348447637,1736532409801,-619.5,9.826e-05,2]
[348447638,1736532409827,-515.05,9.826e-05,2]
[348447639,1736532409853,-615.27,9.826e-05,2]
[348447640,1736532409879,-500.0,9.826e-05,2]
[348447641,1736532409904,-500.0,9.826e-05,2]
[348447642,1736532409929,-1442.3,9.826e-05,2]
[348447643,1736532409955,-500.0,9.826e-05,2]
[348447644,1736532409982,-500.0,9.826e-05,2]
[348447645,1736532410011,-500.0,9.826e-05,2]
[348447646,1736532410041,-3985.15,9.826e-05,2]
[348447647,1736532410068,-500.0,9.826e-05,2]
[348447648,1736532410093,-500.0,9.826e-05,2]
[348447649,1736532410117,-500.0,9.826e-05,2]
[348447650,1736532410142,-500.0,9.826e-05,2]
[348447651,1736532410169,-561.91,9.826e-05,2]
[348447652,1736532410196,-500.0,9.826e-05,2]
[348447653,1736532410222,-515.69,9.826e-05,2]
[348447654,1736532410251,-500.0,9.826e-05,2]
[348447655,1736532410275,-1350.44,9.826e-05,2]
[348447656,1736532410301,-500.0,9.826e-05,2]
[348447657,1736532410325,-500.0,9.826e-05,2]
[348447658,1736532410350,-785.25,9.826e-05,2]
[348447659,1736532410376,-500.0,9.826e-05,2]
[348447660,1736532410400,-500.0,9.826e-05,2]
[348447661,1736532410425,-522.42,9.826e-05,2]
[348447662,1736532410453,-899.49,9.826e-05,2]
[348447663,1736532410480,-500.0,9.826e-05,2]
[348447664,1736532410510,-500.0,9.826e-05,2]
[348447665,1736532410536,-500.0,9.826e-05,2]
[348447666,1736532410564,-500.0,9.826e-05,2]
[348447667,1736532410591,-1122.06,9.826e-05,2]
[348447668,1736532410619,-500.0,9.826e-05,2]
[348447669,1736532410649,-500.0,9.826e-05,2]
[348447670,1736532410677,-1243.64,9.826e-05,2]
[348447671,1736532410704,-2437.61,9.826e-05,2]
[348447672,1736532410772,-500.0,9.826e-05,2]
[348447673,1736532410798,-2084.12,9.826e-05,2]
[348447674,1736532410823,-195.3,9.826e-05,2]
[348447675,1736532410848,-500.0,9.826e-05,2]
[348447676,1736532410872,-500.0,9.826e-05,2]
[348447677,1736532410898,-500.0,9.826e-05,2]
[348447678,1736532410924,-787.93,9.826e-05,2]
[348447679,1736532410949,-1322.21,9.826e-05,2]
[348447680,1736532410975,-500.0,9.826e-05,2]
[348447681,1736532411003,-500.0,9.826e-05,2]
[348447682,1736532411027,-619.79,9.826e-05,2]
[348447683,1736532411053,-500.0,9.826e-05,2]
[348447684,1736532411079,-500.0,9.826e-05,2]
[348447685,1736532411105,-2256.07,9.826e-05,2]
[348447686,1736532411131,-500.0,9.826e-05,2]
[348447687,1736532411155,-500.0,9.826e-05,2]
[348447688,1736532411183,-1079.39,9.826e-05,2]
[348447689,1736532411207,-850.35,9.826e-05,2]
[348447690,1736532411231,-580.36,9.827e-05,2]
[348447691,1736532411259,-500.0,9.827e-05,2]
[348447692,1736532411283,-605.19347148,9.827e-05,2]
[348447693,1736532411307,-531.85,9.827e-05,2]
[348447694,1736532411331,-500.0,9.827e-05,2]
[348447695,1736532411357,-500.0,9.827e-05,2]
[348447696,1736532411385,-500.0,9.827e-05,2]
[348447697,1736532411410,-189.3,9.827e-05,2]
[348447698,1736532411433,-500.0,9.827e-05,2]
[348447699,1736532411457,-500.0,9.827e-05,2]
[348447700,1736532411481,-500.0,9.827e-05,2]
[348447701,1736532411509,-500.0,9.827e-05,2]
[348447702,1736532411534,-375.46539831,9.827e-05,2]
[348447703,1736532411559,-500.0,9.827e-05,2]
[348447704,1736532411585,-500.0,9.827e-05,2]
[348447705,1736532411609,-500.0,9.827e-05,2]
[348447706,1736532411633,-500.0,9.827e-05,2]
[348447707,1736532411659,-500.0,9.827e-05,2]
[348447708,1736532411683,-519.69,9.827e-05,2]
[348447709,1736532411707,-500.0,9.827e-05,2]
[348447710,1736532411730,-500.0,9.827e-05,2]
[348447711,1736532411754,-500.0,9.827e-05,2]
[348447712,1736532411779,-500.0,9.827e-05,2]
[348447713,1736532411805,-502.98,9.827e-05,2]
[348447714,1736532411830,-500.0,9.827e-05,2]
[348447715,1736532411854,-500.0,9.827e-05,2]
[348447716,1736532411880,-500.0,9.827e-05,2]
[348447717,1736532411904,-526.93,9.827e-05,2]
[348447718,1736532411929,-500.0,9.827e-05,2]
[348447719,1736532411954,-500.0,9.827e-05,2]
[348447720,1736532411981,-500.0,9.827e-05,2]
[348447721,1736532412009,-500.0,9.827e-05,2]
[348447722,1736532412034,-500.0,9.827e-05,2]
[348447723,1736532412061,-500.0,9.827e-05,2]
[348447724,1736532412087,-500.0,9.827e-05,2]
[348447725,1736532412114,-500.0,9.827e-05,2]
[348447726,1736532412139,-601.46,9.827e-05,2]
[348447727,1736532412165,-500.0,9.827e-05,2]
[348447728,1736532412193,-500.0,9.827e-05,2]
[348447729,1736532412220,-500.0,9.827e-05,2]
[348447730,1736532412248,-500.0,9.827e-05,2]
[348447731,1736532412275,-500.0,9.827e-05,2]
[348447732,1736532412300,-500.0,9.827e-05,2]
[348447733,1736532412325,-500.0,9.827e-05,2]
[348447734,1736532412351,-500.0,9.827e-05,2]
[348447735,1736532412376,-500.0,9.827e-05,2]
[348447736,1736532412401,-500.0,9.827e-05,2]
[348447737,1736532412426,-500.0,9.827e-05,2]
[348447738,1736532412449,-500.0,9.827e-05,2]
[348447739,1736532412474,-500.0,9.827e-05,2]
[348447740,1736532412502,-500.0,9.827e-05,2]
[348447741,1736532412525,-533.72,9.827e-05,2]
[348447742,1736532412553,-500.0,9.827e-05,2]
[348447743,1736532412577,-500.0,9.827e-05,2]
[348447744,1736532412601,-500.0,9.827e-05,2]
[348447745,1736532412625,-500.0,9.827e-05,2]
[348447746,1736532412648,-500.0,9.827e-05,2]
[348447747,1736532412673,-500.0,9.827e-05,2]
[348447748,1736532412701,-500.0,9.827e-05,2]
[348447749,1736532412727,-500.0,9.827e-05,2]
[348447750,1736532412755,-687.16,9.827e-05,2]
[348447751,1736532412781,-500.0,9.827e-05,2]
[348447752,1736532412808,-500.0,9.827e-05,2]
[348447753,1736532412832,-500.0,9.827e-05,2]
[348447754,1736532412858,-715.91,9.827e-05,2]
[348447755,1736532412884,-500.0,9.827e-05,2]
[348447756,1736532412910,-500.0,9.827e-05,2]
[348447757,1736532412938,-500.0,9.827e-05,2]
[348447758,1736532412965,-500.0,9.827e-05,2]
[348447759,1736532412990,-500.0,9.827e-05,2]
[348447760,1736532413020,-2023.16,9.827e-05,2]
[348447761,1736532413048,-1012.94,9.827e-05,2]
[348447762,1736532413074,-566.09,9.827e-05,2]
[348447763,1736532413100,-500.0,9.827e-05,2]
[348447764,1736532413125,-2231.49,9.827e-05,2]
[348447765,1736532413150,-882.57,9.827e-05,2]
[348447766,1736532413181,-500.0,9.827e-05,2]
[348447767,1736532413206,-500.0,9.827e-05,2]
[348447768,1736532413234,-1979.37,9.827e-05,2]
[348447769,1736532413262,-500.0,9.828e-05,2]
[348447770,1736532413288,-500.0,9.828e-05,2]
[348447771,1736532413314,-500.0,9.828e-05,2]
[348447772,1736532413339,-556.91,9.828e-05,2]
[348447773,1736532413366,-500.0,9.828e-05,2]
[348447774,1736532413391,-500.0,9.828e-05,2]
[348447775,1736532413415,-500.0,9.828e-05,2]
[348447776,1736532413442,-614.3534971,9.828e-05,2]
[348447777,1736532413469,-614.22,9.828e-05,2]
[348447778,1736532413494,-683.85,9.829e-05,2]
[348447779,1736532413522,-500.0,9.829e-05,2]
[348447780,1736532413549,-587.6,9.829e-05,2]
[348447781,1736532413575,-1490.17,9.829e-05,2]
[348447782,1736532413601,-691.43,9.829e-05,2]
[348447783,1736532413628,-655.43,9.829e-05,2]
[348447784,1736532413653,-510.86,9.829e-05,2]
[348447785,1736532413682,-500.0,9.829e-05,2]
[348447786,1736532413708,-579.17,9.829e-05,2]
[348447787,1736532413735,-500.0,9.829e-05,2]
[348447788,1736532413763,-500.0,9.829e-05,2]
[348447789,1736532413789,-554.48,9.829e-05,2]
[348447790,1736532413814,-500.0,9.829e-05,2]
[348447791,1736532413841,-879.1,9.829e-05,2]
[348447792,1736532413867,-500.0,9.83e-05,2]
[348447793,1736532413894,-500.0,9.83e-05,2]
[348447794,1736532413924,-500.0,9.83e-05,2]
[348447795,1736532413952,-1105.58,9.83e-05,2]
[348447796,1736532413980,-500.0,9.83e-05,2]
[348447797,1736532414007,-829.69,9.83e-05,2]
[348447798,1736532414034,-526.98,9.83e-05,2]
[348447799,1736532414065,-853.59,9.83e-05,2]
[348447800,1736532414089,-500.0,9.83e-05,2]
[348447801,1736532414114,-1000.0,9.83e-05,2]
[348447802,1736532414140,-534.89,9.83e-05,2]
[348447803,1736532414164,-500.0,9.83e-05,2]
[348447804,1736532414192,-1310.65,9.83e-05,2]
[348447805,1736532414218,-1028.3,9.831e-05,2]
[348447806,1736532414247,-500.0,9.831e-05,2]
[348447807,1736532414276,-713.44,9.831e-05,2]
[348447808,1736532414301,-788.59,9.831e-05,2]
[348447809,1736532414328,-1004.56,9.831e-05,2]
[348447810,1736532414355,-791.55,9.831e-05,2]
[348447811,1736532414382,-1643.22408284,9.831e-05,2]
[348447812,1736532525367,-299.76,8.948e-05,2]
[348447817,1736532532755,-4451.07,8.974e-05,2]
[348447821,1736532566259,-250.0,8.965e-05,2]
[348447824,1736532588934,169.0,0.0002,120]
[348447846,1736532631860,-520.83,9.009e-05,2]
[348447848,1736532631872,-300.0,9.277e-05,2]
[348447849,1736532631882,-500.0,9.278e-05,2]
[348447850,1736532631892,-626.43,9.278e-05,2]
[348447851,1736532631903,-1770.27,9.278e-05,2]
[348447852,1736532631913,-150.0,9.278e-05,2]
[348447853,1736532631923,-772.25,9.278e-05,2]
[348447854,1736532631933,-2007.08,9.278e-05,2]
[348447855,1736532631946,-2175.16,9.278e-05,2]
[348447856,1736532631957,-255.18882567,9.278e-05,2]
[348447857,1736532631966,-500.0,9.279e-05,2]
[348447858,1736532631976,-500.0,9.279e-05,2]
[348447859,1736532631986,-500.0,9.279e-05,2]
[348447860,1736532631996,-500.0,9.279e-05,2]
[348447861,1736532632006,-500.0,9.279e-05,2]
[348447862,1736532632016,-500.0,9.279e-05,2]
[348447863,1736532632027,-592.81,9.279e-05,2]
[348447864,1736532632037,-500.0,9.279e-05,2]
[348447865,1736532632047,-500.0,9.279e-05,2]
[348447866,1736532632057,-53.09154817,9.279e-05,2]
[348447867,1736532632070,-833.22845183,9.279e-05,2]
[348447868,1736532632080,-1731.95,9.279e-05,2]
[348447869,1736532632090,-500.0,9.279e-05,2]
[348447870,1736532632101,-958.64,9.279e-05,2]
[348447871,1736532632111,-500.0,9.281e-05,2]
[348447872,1736532632121,-812.95,9.281e-05,2]
[348447873,1736532632132,-309.82114795,9.281e-05,2]
[348447874,1736532632145,-1294.30885205,9.281e-05,2]
[348447875,1736532632154,-2901.27,9.281e-05,2]
[348447876,1736532632165,-255.49036498,9.281e-05,2]
[348447877,1736532632177,-244.50963502,9.281e-05,2]
[348447878,1736532632187,-500.0,9.281e-05,2]
[348447879,1736532632199,-500.0,9.281e-05,2]
[348447880,1736532632208,-598.37,9.283e-05,2]
[348447881,1736532632218,-480.81169098,9.283e-05,2]
[348447882,1736532632262,-19.18830902,9.283e-05,2]
[348447883,1736532632272,-632.01,9.283e-05,2]
[348447884,1736532632282,-1500.89492804,9.283e-05,2]
[348447885,1736532632296,-82.93507196,9.283e-05,2]
[348447886,1736532632306,-669.25,9.283e-05,2]
[348447887,1736532632317,-566.84,9.283e-05,2]
[348447888,1736532632327,-2750.25286804,9.452e-05,2]
[348447889,1736532632346,-372.9696363,9.452e-05,2]
[348447890,1736532632376,-1876.77749566,9.452e-05,2]
[348447891,1736532632387,-1322.1,9.551e-05,2]
[348447892,1736532632398,-3653.06,9.551e-05,2]
[348447893,1736532632409,-500.0,9.551e-05,2]
[348447894,1736532632418,-768.74,9.551e-05,2]
[348447895,1736532632428,-941.95,9.551e-05,2]
[348447896,1736532632438,-1226.02,9.551e-05,2]
[348447897,1736532632450,-343.95670196,9.551e-05,2]
[348447899,1736532632460,-2091.4,9.551e-05,2]
[348447901,1736532632470,-618.26,9.551e-05,2]
[348447903,1736532632480,-500.0,9.551e-05,2]
[348447905,1736532632491,-1261.88,9.551e-05,2]
[348447907,1736532632501,-1176.53,9.551e-05,2]
[348447909,1736532632511,-500.0,9.552e-05,2]
[348447911,1736532632522,-500.0,9.552e-05,2]
[348447913,1736532632532,-500.0,9.552e-05,2]
[348447915,1736532632541,-500.0,9.552e-05,2]
[348447917,1736532632552,-500.0,9.552e-05,2]
[348447919,1736532632561,-500.0,9.552e-05,2]
[348447921,1736532632571,-500.0,9.552e-05,2]
[348447923,1736532632581,-500.0,9.552e-05,2]
[348447925,1736532632591,-500.0,9.552e-05,2]
[348447927,1736532632600,-521.68533043,9.552e-05,2]
[348447929,1736532632610,-500.0,9.552e-05,2]
[348447931,1736532632619,-501.34,9.552e-05,2]
[348447933,1736532632629,-500.0,9.552e-05,2]
[348447935,1736532632639,-500.0,9.552e-05,2]
[348447937,1736532632649,-500.0,9.552e-05,2]
[348447939,1736532632659,-500.0,9.552e-05,2]
[348447941,1736532632668,-500.0,9.552e-05,2]
[348447943,1736532632678,-500.0,9.552e-05,2]
[348447945,1736532632688,-500.0,9.552e-05,2]
[348447948,1736532632711,-591.89790047,9.552e-05,2]
[348447950,1736532632721,-626.43,9.552e-05,2]
[348447952,1736532632731,-500.0,9.552e-05,2]
[348447954,1736532632740,-500.0,9.552e-05,2]
[348447956,1736532632750,-500.0,9.552e-05,2]
[348447958,1736532632760,-500.0,9.552e-05,2]
[348447960,1736532632769,-500.0,9.552e-05,2]
[348447962,1736532632779,-500.0,9.552e-05,2]
[348447964,1736532632789,-500.0,9.552e-05,2]
[348447966,1736532632799,-528.28,9.552e-05,2]
[348447968,1736532632809,-500.0,9.552e-05,2]
[348447970,1736532632819,-500.0,9.552e-05,2]
[348447972,1736532632828,-664.56,9.552e-05,2]
[348447974,1736532632839,-1732.7,9.552e-05,2]
[348447976,1736532632850,-519.14,9.552e-05,2]
[348447978,1736532632860,-488.22817581,9.552e-05,2]
[348447980,1736532632870,-508.15212782,9.552e-05,2]
[348447982,1736532632880,-500.0,9.552e-05,2]
[348447984,1736532632889,-500.0,9.552e-05,2]
[348447987,1736532632900,-500.0,9.552e-05,2]
[348447989,1736532632910,-500.0,9.552e-05,2]
[348447991,1736532632920,-500.0,9.552e-05,2]
[348447993,1736532632930,-539.28,9.552e-05,2]
[348447995,1736532632942,-500.0,9.552e-05,2]
[348447997,1736532632951,-500.0,9.552e-05,2]
[348447999,1736532632961,-500.0,9.552e-05,2]
[348448001,1736532632971,-500.0,9.552e-05,2]
[348448003,1736532632981,-500.0,9.552e-05,2]
[348448005,1736532632991,-485.20087285,9.552e-05,2]
[348448007,1736532633000,-500.0,9.552e-05,2]
[348448009,1736532633010,-456.20148273,9.552e-05,2]
[348448011,1736532633019,-1770.27,9.552e-05,2]
[348448013,1736532633029,-516.56305165,9.552e-05,2]
[348448014,1736532633039,-500.0,9.552e-05,2]
[348448016,1736532633049,-500.0,9.552e-05,2]
[348448018,1736532633059,-500.0,9.552e-05,2]
[348448021,1736532633070,-500.0,9.552e-05,2]
[348448022,1736532633080,-500.0,9.552e-05,2]
[348448024,1736532633090,-500.0,9.552e-05,2]
[348448026,1736532633102,-500.0,9.552e-05,2]
[348448028,1736532633112,-500.0,9.552e-05,2]
[348448030,1736532633122,-1338.37,9.552e-05,2]
[348448033,1736532633133,-500.0,9.552e-05,2]
[348448034,1736532633144,-500.0,9.552e-05,2]
[348448036,1736532633154,-500.0,9.552e-05,2]
[348448039,1736532633165,-500.0,9.552e-05,2]
[348448040,1736532633176,-500.0,9.552e-05,2]
[348448043,1736532633186,-543.8336091,9.552e-05,2]
[348448045,1736532633198,-772.25,9.552e-05,2]
[348448046,1736532633208,-500.0,9.552e-05,2]
[348448047,1736532633218,-500.0,9.552e-05,2]
[348448048,1736532633228,-319.48897537,9.552e-05,2]
[348448064,1736532633515,-180.51102463,9.552e-05,2]
[348448066,1736532633527,-95.33370994,9.552e-05,2]
[348448069,1736532633539,-325.97063998,9.552e-05,2]
[348448071,1736532633554,-78.69565008,9.552e-05,2]
[348448073,1736532633566,-540.37,9.552e-05,2]
[348448075,1736532633576,-500.0,9.552e-05,2]
[348448077,1736532633585,-500.0,9.552e-05,2]
[348448079,1736532633595,-500.0,9.552e-05,2]
[348448081,1736532633605,-252.64277275,9.552e-05,2]
[348448083,1736532633616,-500.0,9.552e-05,2]
[348448085,1736532633626,-483.61349842,9.552e-05,2]
[348448088,1736532633651,-86.35650158,9.552e-05,2]
[348448089,1736532633661,-678.69704554,9.552e-05,2]
[348448092,1736532633675,-1740.26295446,9.552e-05,2]
[348448094,1736532633685,-500.0,9.552e-05,2]
[348448096,1736532633698,-500.0,9.552e-05,2]
[348448098,1736532633708,-500.0,9.552e-05,2]
[348448100,1736532633718,-500.0,9.552e-05,2]
[348448102,1736532633729,-365.14186495,9.552e-05,2]
[348448105,1736532633754,-134.85813505,9.552e-05,2]
[348448107,1736532633764,-500.0,9.552e-05,2]
[348448109,1736532633774,-514.43118739,9.552e-05,2]
[348448111,1736532633784,-500.0,9.552e-05,2]
[348448114,1736532633797,-231.20289116,9.552e-05,2]
[348448116,1736532633809,-1775.87710884,9.552e-05,2]
[348448118,1736532633819,-500.0,9.552e-05,2]
[348448120,1736532633828,-500.0,9.552e-05,2]
[348448122,1736532633839,-447.12289114,9.552e-05,2]
[348448128,1736532633891,-52.87710886,9.552e-05,2]
[348448130,1736532633902,-500.0,9.552e-05,2]
[348448132,1736532633912,-1689.97,9.552e-05,2]
[348448134,1736532633922,-168.79919744,9.552e-05,2]
[348448136,1736532633935,-331.20080256,9.552e-05,2]
[348448138,1736532633947,-500.0,9.552e-05,2]
[348448140,1736532633957,-102.68919744,9.552e-05,2]
[348448143,1736532633969,-397.31080256,9.552e-05,2]
[348448144,1736532633980,-500.0,9.552e-05,2]